bitfinex-derivatives/quotes_BNBF0:USTF0_20250523
["timestamp","ask_amount","ask_price","bid_price","bid_amount"]
[1747989599427,1.234,684.69,683.86,0.29245752]
[1747989601633,1.234,684.69,683.93,1.62296576]
[1747989601828,1.234,684.69,683.94,0.29242331]
[1747989603934,1.56,684.68,683.94,0.29242331]
[1747989604533,1.56,684.68,684.01,1.62296576]
[1747989605033,1.56,684.68,684.02,0.29238911]
[1747989607336,1.215,684.67,684.02,0.29238911]
[1747989609838,1.287,684.66,684.02,0.29238911]
[1747989614934,0.96558093,684.65,684.02,0.29238911]
[1747989616440,0.96558093,684.64,684.02,0.29238911]
[1747989617339,0.96558093,684.65,684.02,0.29238911]
[1747989630254,0.96558093,684.64,684.02,0.29238911]
[1747989631455,1.802,684.63,684.02,0.29238911]
[1747989631958,0.96558093,684.62,684.02,0.29238911]
[1747989633758,0.96558093,684.61,684.02,0.29238911]
[1747989635058,0.96558093,684.62,684.02,0.29238911]
[1747989636961,0.981,684.61,684.02,0.29238911]
[1747989638863,0.96558093,684.6,684.02,0.29238911]
[1747989643364,1.269,684.59,684.02,0.29238911]
[1747989645265,0.96558093,684.58,684.02,0.29238911]
[1747989653767,1.384,684.57,684.02,0.29238911]
[1747989656378,0.96558093,684.56,684.02,0.29238911]
[1747989660885,1.323,684.55,684.02,0.29238911]
[1747989661687,0.96558093,684.54,684.02,0.29238911]
[1747989663385,1.233,684.53,684.02,0.29238911]
[1747989663982,1.252,684.52,684.02,0.29238911]
[1747989664388,0.96558093,684.51,684.02,0.29238911]
[1747989665886,0.96558093,684.5,684.02,0.29238911]
[1747989667289,0.96558093,684.51,684.02,0.29238911]
[1747989668488,0.96558093,684.5,684.02,0.29238911]
[1747989672791,0.96558093,684.49,684.02,0.29238911]
[1747989674585,0.96558093,684.48,684.02,0.29238911]
[1747989676190,0.96558093,684.47,684.02,0.29238911]
[1747989677790,0.96558093,684.51,684.02,0.29238911]
[1747989679389,0.96558093,684.5,684.02,0.29238911]
[1747989680790,0.96558093,684.49,684.02,0.29238911]
[1747989682592,0.96558093,684.48,684.02,0.29238911]
[1747989683893,0.96558093,684.51,684.02,0.29238911]
[1747989685593,0.96558093,684.5,684.02,0.29238911]
[1747989686691,1.252,684.52,684.02,0.29238911]
[1747989686994,1.281,684.51,684.02,0.29238911]
[1747989692496,1.101,684.5,684.02,0.29238911]
[1747989698896,1.101,684.5,684.1,1.62296576]
[1747989702303,1.101,684.5,684.08,1.62296576]
[1747989704906,1.101,684.5,684.02,0.29238911]
[1747989706603,1.491,684.49,684.02,0.29238911]
[1747989708902,1.298,684.48,684.02,0.29238911]
[1747989716213,2.447,684.48,684.02,0.29238911]
[1747989718915,1.048,684.47,684.02,0.29238911]
[1747989729525,1.048,684.47,684.03,1.62296576]
[1747989732827,1.048,684.47,684.02,0.29238911]
[1747989747943,1.569,684.46,684.02,0.29238911]
[1747989757147,0.98949362,684.45,684.02,0.29238911]
[1747989758652,1.569,684.46,684.02,0.29238911]
[1747989759554,1.511,684.45,684.02,0.29238911]
[1747989761755,1.489,684.44,684.02,0.29238911]
[1747989791776,1.511,684.45,684.02,0.29238911]
[1747989793575,1.529,684.44,684.02,0.29238911]
[1747989798281,1.529,684.44,684.02,1.91535487]
[1747989800781,1.529,684.44,684.02,0.29238911]
[1747989815488,1.518,684.43,684.02,0.29238911]
[1747989818186,1.374,684.42,684.02,0.29238911]
[1747989844913,0.98899512,684.41,684.02,0.29238911]
[1747989846113,0.98899512,684.4,684.02,0.29238911]
[1747989846706,1.328,684.39,684.02,0.29238911]
[1747989848718,0.98899512,684.38,684.02,0.29238911]
[1747989855317,0.98899512,684.38,683.54,1.62296576]
[1747989855521,0.98899512,684.38,683.55,0.29259015]
[1747989858124,1.546,684.37,683.55,0.29259015]
[1747989858319,3.392,684.37,683.55,0.29259015]
[1747989862126,2.45366155,684.36,683.55,0.29259015]
[1747989863128,1.462,684.36,683.55,0.29259015]
[1747989864530,1.462,684.36,683.61,1.62296576]
[1747989864729,1.462,684.36,683.62,0.29256019]
[1747989867635,1.462,684.36,683.65,1.62296576]
[1747989871132,1.462,684.36,683.65,1.91551311]
[1747989871337,1.462,684.36,683.69,1.62296576]
[1747989874635,1.462,684.36,683.66,1.91550883]
[1747989874840,1.462,684.36,683.67,0.29253879]
[1747989877843,1.462,684.36,683.71,1.62296576]
[1747989878039,1.462,684.36,683.72,0.2925174]
[1747989879045,1.451,684.35,683.72,0.2925174]
[1747989880749,1.516,684.34,683.72,0.2925174]
[1747989880948,1.516,684.34,683.77,1.62296576]
[1747989881142,1.516,684.34,683.78,0.29249173]
[1747989885953,1.337,684.33,683.78,0.29249173]
[1747989887655,1.337,684.33,683.78,1.91545749]
[1747989892950,1.337,684.33,683.79,1.62296576]
[1747989893154,1.337,684.33,683.8,0.29248318]
[1747989895460,1.337,684.33,683.81,1.62296576]
[1747989895660,1.337,684.33,683.82,0.29247462]
[1747989898063,1.337,684.33,683.87,1.62296576]
[1747989898361,1.337,684.33,683.88,0.29244896]
[1747989903066,1.281,684.32,683.88,0.29244896]
[1747989915175,1.516,684.34,683.88,0.29244896]
[1747989916979,1.516,684.34,683.89,1.62296576]
[1747989917173,1.407,684.33,683.9,0.29244041]
[1747989917571,3.011,684.33,683.9,0.29244041]
[1747989919278,3.011,684.33,683.93,1.62296576]
[1747989919578,3.011,684.33,683.94,0.29242331]
[1747989921982,3.011,684.33,683.95,1.62296576]
[1747989922182,3.011,684.33,683.96,0.29241476]
[1747989928586,1.407,684.33,683.96,0.29241476]
[1747989931088,1.111,684.32,683.96,0.29241476]
[1747989934394,1.253,684.31,683.96,0.29241476]
[1747989935791,1.253,684.31,683.98,1.62296576]
[1747989941297,1.253,684.31,684.01,1.62296576]
[1747989945000,1.253,684.31,683.97,1.62296576]
[1747989948102,1.253,684.31,683.96,1.91538052]
[1747989951007,1.253,684.31,683.96,0.29241476]
[1747989952399,1.111,684.32,683.96,0.29241476]
[1747989953205,1.09240261,684.78,683.96,0.29241476]
[1747989953504,0.47148761,684.77,683.96,0.29241476]
[1747989953705,0.47148761,684.76,683.96,0.29241476]
[1747989953908,0.47145329,684.75,683.96,0.29241476]
[1747989954205,0.47145329,684.74,683.96,0.29241476]
[1747989954405,0.47145329,684.73,683.96,0.29241476]
[1747989954605,0.47145329,684.72,683.96,0.29241476]
[1747989954803,0.47145329,684.71,683.96,0.29241476]
[1747989955007,0.47145329,684.7,683.96,0.29241476]
[1747989955206,0.47145329,684.69,683.96,0.29241476]
[1747989955408,0.47145329,684.68,683.96,0.29241476]
[1747989955608,0.47145329,684.67,683.96,0.29241476]
[1747989955808,0.47145329,684.66,683.96,0.29241476]
[1747989956009,1.218,684.68,683.96,0.29241476]
[1747989956204,1.46092666,684.67,683.96,0.29241476]
[1747989956508,0.98951694,684.67,683.96,0.29241476]
[1747989958110,0.98951694,684.66,683.96,0.29241476]
[1747989959212,0.98951694,684.65,683.96,0.29241476]
[1747989960913,0.98951694,684.64,683.96,0.29241476]
[1747989962615,0.98951694,684.63,683.96,0.29241476]
[1747989964716,1.218,684.68,683.96,0.29241476]
[1747989964717,0.98951694,684.62,683.96,0.29241476]
[1747989966319,0.98951694,684.61,683.96,0.29241476]
[1747989968320,0.98951694,684.6,683.96,0.29241476]
[1747989969620,0.98951694,684.59,683.96,0.29241476]
[1747989971322,0.98951694,684.58,683.96,0.29241476]
[1747989973022,0.98951694,684.57,683.96,0.29241476]
[1747989975226,0.98951694,684.56,683.96,0.29241476]
[1747989976825,0.98951694,684.55,683.96,0.29241476]
[1747989977425,1.237,684.54,683.96,0.29241476]
[1747989978426,0.98951694,684.53,683.96,0.29241476]
[1747989978727,1.251,684.52,683.96,0.29241476]
[1747989979626,0.98951694,684.51,683.96,0.29241476]
[1747989981728,1.251,684.52,683.96,0.29241476]
[1747989983429,0.99306593,684.51,683.96,0.29241476]
[1747989984726,0.99306593,684.5,683.96,0.29241476]
[1747989986632,0.99306593,684.51,683.96,0.29241476]
[1747989991334,0.99306593,684.5,683.96,0.29241476]
[1747989993031,0.99306593,684.49,683.96,0.29241476]
[1747989994136,0.99306593,684.48,683.96,0.29241476]
[1747989994337,2.81206593,684.48,683.96,0.29241476]
[1747989995937,0.99306593,684.47,683.96,0.29241476]
[1747989996738,1.64,684.46,683.96,0.29241476]
[1747989997040,0.99306593,684.45,683.96,0.29241476]
[1747989998939,0.99306593,684.44,683.96,0.29241476]
[1747990000839,0.99306593,684.45,683.96,0.29241476]
[1747990002442,0.99306593,684.44,683.96,0.29241476]
[1747990003941,0.99306593,684.43,683.96,0.29241476]
[1747990004638,1.341,684.42,683.96,0.29241476]
[1747990007044,2.557,684.42,683.96,0.29241476]
[1747990008754,4.152,684.42,683.96,0.29241476]
[1747990016860,1.474,684.41,683.96,0.29241476]
[1747990025870,1.474,684.41,684.0,1.62833694]
[1747990027267,1.474,684.41,684.01,0.29239338]
[1747990028869,1.474,684.41,684.04,1.62833694]
[1747990038981,1.474,684.41,684.01,0.29239338]
[1747990045185,1.626,684.4,684.01,0.29239338]
[1747990051186,1.341,684.39,684.01,0.29239338]
[1747990054784,1.341,684.39,684.01,1.92073032]
[1747990058390,1.341,684.39,684.06,1.62833694]
[1747990061292,1.341,684.39,684.12,1.62833694]
[1747990064393,1.341,684.39,684.01,0.29239338]
[1747990069995,1.683,684.38,684.01,0.29239338]
[1747990088117,1.341,684.39,684.01,0.29239338]
[1747990090916,1.463,684.38,684.01,0.29239338]
[1747990093820,1.148,684.37,684.01,0.29239338]
[1747990114743,1.463,684.38,684.01,0.29239338]
[1747990116646,1.533,684.37,684.01,0.29239338]
[1747990151274,1.442,684.36,684.01,0.29239338]
[1747990162388,2.846,684.46,684.01,0.29239338]
[1747990163083,1.488,684.45,684.01,0.29239338]
[1747990165287,1.236,684.44,684.01,0.29239338]
[1747990181492,1.236,684.44,684.03,1.62833694]
[1747990184295,1.236,684.44,684.01,0.29239338]
[1747990190699,1.64,684.43,684.01,0.29239338]
[1747990205712,3.423,684.46,684.01,0.29239338]
[1747990208215,1.43,684.45,684.01,0.29239338]
[1747990209214,1.196,684.44,684.01,0.29239338]
[1747990220930,1.593,684.43,684.01,0.29239338]
[1747990237745,1.593,684.43,684.01,1.92098995]
[1747990243344,1.593,684.43,684.05,1.62859657]
[1747990246657,1.593,684.43,684.01,0.29239338]
[1747990248557,1.749,684.42,684.01,0.29239338]
[1747990264974,1.398,684.41,684.01,0.29239338]
[1747990273980,1.38,684.4,684.01,0.29239338]
[1747990279482,1.518,684.39,684.01,0.29239338]
[1747990293093,1.377,684.38,684.01,0.29239338]
[1747990315104,1.778,684.37,684.01,0.29239338]
[1747990323211,1.329,684.36,684.01,0.29239338]
[1747990326514,1.329,684.36,684.02,1.62859657]
[1747990329114,1.329,684.36,684.01,0.29239338]
[1747990346327,1.778,684.37,684.01,0.29239338]
[1747990349729,1.301,684.36,684.01,0.29239338]
[1747990352231,1.284,684.35,684.01,0.29239338]
[1747990355939,1.284,684.35,683.91,1.62859657]
[1747990356439,1.284,684.35,683.92,1.62859657]
[1747990363744,1.284,684.35,683.9,1.62859657]
[1747990366845,1.284,684.35,683.88,1.62859657]
[1747990372748,1.284,684.35,683.89,1.62859657]
[1747990374649,1.492,684.34,683.89,1.62859657]
[1747990375551,1.492,684.34,684.02,1.62859657]
[1747990378552,1.492,684.34,684.01,1.62859657]
[1747990385954,1.492,684.34,684.02,1.62859657]
[1747990387961,1.529,684.33,684.02,1.62859657]
[1747990392768,1.529,684.33,684.0,1.62859657]
[1747990396867,1.529,684.33,683.98,1.62859657]
[1747990399974,1.529,684.33,683.91,1.62859657]
[1747990402677,1.529,684.33,683.92,1.62859657]
[1747990407581,1.529,684.33,683.93,0.29242758]
[1747990408183,1.423,684.32,683.93,0.29242758]
[1747990418988,1.423,684.32,683.98,1.62859657]
[1747990421492,1.423,684.32,684.0,1.62859657]
[1747990424098,1.423,684.32,683.95,1.62859657]
[1747990424294,1.423,684.32,683.96,0.29241476]
[1747990429901,1.445,684.31,683.96,0.29241476]
[1747990438707,1.445,684.31,683.98,1.62859657]
[1747990442110,1.445,684.31,683.97,1.62859657]
[1747990442306,1.445,684.31,683.97,1.92100705]
[1747990442712,1.445,684.31,683.98,0.29240621]
[1747990444813,1.445,684.31,683.99,1.62859657]
[1747990445011,1.445,684.31,684.0,0.29239766]
[1747990452921,2.119,684.41,684.0,0.29239766]
[1747990455120,1.403,684.4,684.0,0.29239766]
[1747990455422,1.115,684.39,684.0,0.29239766]
[1747990458128,1.115,684.39,684.05,1.62859657]
[1747990461735,1.115,684.39,684.0,0.29239766]
[1747990461736,1.115,684.39,684.03,1.62859657]
[1747990464533,1.115,684.39,684.03,0.29238483]
[1747990467332,1.115,684.39,684.03,1.9209814]
[1747990471132,1.115,684.39,684.07,1.62859657]
[1747990471339,1.115,684.39,684.08,0.29236346]
[1747990487547,2.536,684.53,684.08,0.29236346]
[1747990489550,1.74,684.52,684.08,0.29236346]
[1747990489751,3.136,684.52,684.08,0.29236346]
[1747990495359,3.136,684.52,684.16,1.62859657]
[1747990498154,3.136,684.52,684.17,1.62859657]
[1747990500662,1.74,684.52,684.14,1.62859657]
[1747990502860,1.314,684.51,684.14,1.62859657]
[1747990503461,1.314,684.51,684.08,0.29236346]
[1747990517572,1.314,684.51,684.18,1.62859657]
[1747990517772,1.314,684.51,684.19,0.29231646]
[1747990521572,1.314,684.51,684.21,1.62859657]
[1747990521772,1.314,684.51,684.22,0.29230364]
[1747990525075,1.314,684.51,684.33,1.62859657]
[1747990525276,1.314,684.51,684.34,0.29225238]
[1747990531586,1.314,684.51,684.34,1.92084895]
[1747990534992,1.314,684.51,684.34,0.29225238]
[1747990539290,1.314,684.51,684.39,1.62859657]
[1747990540491,1.314,684.51,684.38,1.62859657]
[1747990543891,1.196,684.57,684.34,0.29225238]
[1747990546190,2.616,684.57,684.34,0.29225238]
[1747990647676,2.616,684.57,684.37,1.62859657]
[1747990647975,1.418,684.78,684.37,1.62859657]
[1747990650582,1.418,684.78,684.34,0.29225238]
[1747990650782,2.71,684.77,684.34,0.29225238]
[1747990659393,0.99454382,684.76,684.34,0.29225238]
[1747990660690,0.99454382,684.75,684.34,0.29225238]
[1747990662496,2.71,684.77,684.34,0.29225238]
[1747990663497,0.99468096,684.76,684.34,0.29225238]
[1747990665099,0.99468096,684.75,684.34,0.29225238]
[1747990666592,2.71,684.77,684.34,0.29225238]
[1747990668496,0.9945084,684.76,684.34,0.29225238]
[1747990669599,2.71,684.77,684.34,0.29225238]
[1747990672304,0.99412954,684.76,684.34,0.29225238]
[1747990675006,2.71,684.77,684.34,0.29225238]
[1747990695814,1.201,684.77,684.34,0.29225238]
[1747990697519,1.784,684.76,684.34,0.29225238]
[1747990706326,1.54,684.75,684.34,0.29225238]
[1747990734559,1.41,684.74,684.34,0.29225238]
[1747990737656,1.41,684.74,684.37,1.62859657]
[1747990740263,1.41,684.74,684.34,1.92084895]
[1747990743664,1.41,684.74,684.35,1.62859657]
[1747990746867,1.41,684.74,684.34,0.29225238]
[1747990752571,1.51,684.73,684.34,0.29225238]
[1747990764781,1.588,684.72,684.34,0.29225238]
[1747990770990,1.829,684.71,684.34,0.29225238]
[1747990784004,0.99587952,684.7,684.34,0.29225238]
[1747990785305,0.99587952,684.69,684.34,0.29225238]
[1747990786705,1.829,684.71,684.34,0.29225238]
[1747990790507,1.344,684.7,684.34,0.29225238]
[1747990821336,1.344,684.7,684.41,1.62859657]
[1747990823938,1.344,684.7,684.34,0.29225238]
[1747990828039,1.604,684.69,684.34,0.29225238]
[1747990828841,1.604,684.69,684.48,1.62859657]
[1747990829136,1.604,684.69,684.49,0.29218834]
[1747990858070,1.915,684.72,684.49,0.29218834]
[1747990861574,1.915,684.72,684.49,0.29218834]
[1747990862072,1.785,684.71,684.49,0.29218834]
[1747990879488,3.026,684.71,684.49,0.29218834]
[1747990909523,3.026,684.71,684.2,1.62859657]
[1747990909823,1.09496494,685.19,684.2,1.62859657]
[1747990910024,0.46979765,685.18,684.2,1.62859657]
[1747990910218,0.46979765,685.17,684.2,1.62859657]
[1747990910421,1.09496494,685.13,684.16,1.62859657]
[1747990910619,0.46979765,685.12,684.16,1.62859657]
[1747990911523,0.9909507,685.11,684.16,1.62859657]
[1747990911718,0.46979765,685.1,684.16,1.62859657]
[1747990911924,2.05579765,685.1,684.16,1.62859657]
[1747990912123,0.46979765,685.09,684.16,1.62859657]
[1747990912324,2.37579765,685.09,684.16,1.62859657]
[1747990912525,0.46979765,685.08,684.16,1.62859657]
[1747990913126,1.897,685.07,684.16,1.62859657]
[1747990913426,0.46979765,685.06,684.16,1.62859657]
[1747990913627,2.54179765,685.06,684.16,1.62859657]
[1747990913828,0.46979765,685.05,684.16,1.62859657]
[1747990914332,0.46993933,685.04,684.16,1.62859657]
[1747990914522,3.16696494,685.06,684.16,1.62859657]
[1747990914523,0.46993933,685.03,684.16,1.62859657]
[1747990914725,0.46993933,685.02,684.16,1.62859657]
[1747990914928,0.46993933,685.01,684.16,1.62859657]
[1747990915128,0.46993933,685.0,684.16,1.62859657]
[1747990915328,0.46993933,684.99,684.16,1.62859657]
[1747990915529,0.46993933,684.98,684.16,1.62859657]
[1747990915729,0.9909507,685.02,684.16,1.62859657]
[1747990915922,0.46990771,685.01,684.16,1.62859657]
[1747990916127,0.46990771,685.0,684.16,1.62859657]
[1747990916324,0.46990617,684.99,684.16,1.62859657]
[1747990916523,0.46990617,684.98,684.16,1.62859657]
[1747990916828,0.9909507,685.0,684.04,1.62859657]
[1747990917128,0.9909507,685.0,684.05,0.29237628]
[1747990917831,0.9909507,684.99,684.05,0.29237628]
[1747990918223,0.47000852,684.98,684.05,0.29237628]
[1747990918429,0.47000852,684.97,684.05,0.29237628]
[1747990918627,0.9909507,684.99,684.05,0.29237628]
[1747990919234,0.47013049,684.98,684.05,0.29237628]
[1747990919534,0.9909507,684.98,684.05,0.29237628]
[1747990921034,0.9909507,684.97,684.05,0.29237628]
[1747990922136,0.9909507,684.96,684.07,1.62859657]
[1747990922337,0.9909507,684.96,684.08,0.29236346]
[1747990923537,0.9909507,684.95,684.08,0.29236346]
[1747990925233,0.9909507,684.94,684.09,1.62859657]
[1747990926438,0.9909507,684.93,684.09,1.62859657]
[1747990928039,0.9909507,684.92,684.08,1.92096003]
[1747990928441,1.94,684.91,684.08,1.92096003]
[1747990929434,0.9909507,684.9,684.08,1.92096003]
[1747990930743,0.9909507,684.89,684.08,0.29236346]
[1747990931146,1.836,684.88,684.08,0.29236346]
[1747990932542,0.9909507,684.87,684.08,0.29236346]
[1747990934043,0.9909507,684.86,684.1,1.62859657]
[1747990935044,0.9909507,684.85,684.1,1.62859657]
[1747990937044,0.9909507,684.84,684.1,1.62859657]
[1747990937639,0.9909507,684.83,684.1,1.62859657]
[1747990938339,0.9909507,684.82,684.08,0.29236346]
[1747990939543,0.9909507,684.81,684.08,0.29236346]
[1747990942051,0.9909507,684.8,684.08,0.29236346]
[1747990942250,2.2879507,684.8,684.08,0.29236346]
[1747990943251,1.559,684.79,684.08,0.29236346]
[1747990943753,0.9909507,684.78,684.08,0.29236346]
[1747990947456,0.9909507,684.78,684.08,1.92096003]
[1747990950058,0.9909507,684.78,684.08,0.29236346]
[1747990953160,0.9909507,684.77,684.08,0.29236346]
[1747990954561,1.425,684.76,684.08,0.29236346]
[1747990954761,2.4159507,684.76,684.08,0.29236346]
[1747990956060,0.9909507,684.75,684.08,0.29236346]
[1747990956258,2.8749507,684.75,684.08,0.29236346]
[1747990957164,0.9909507,684.74,684.08,0.29236346]
[1747990958665,0.9909507,684.73,684.09,1.62859657]
[1747990959166,1.351,684.72,684.09,1.62859657]
[1747990960163,0.9909507,684.71,684.09,1.62859657]
[1747990961967,0.9909507,684.7,684.11,1.62859657]
[1747990963068,0.9909507,684.69,684.11,1.62859657]
[1747990964772,0.9909507,684.68,684.11,1.62859657]
[1747990965370,1.351,684.72,684.11,1.62859657]
[1747990967168,0.98953373,684.71,684.08,0.29236346]
[1747990968771,0.98953373,684.7,684.08,0.29236346]
[1747990970274,0.98953373,684.69,684.08,0.29236346]
[1747990971573,0.98953373,684.68,684.08,0.29236346]
[1747990972775,0.98953373,684.67,684.08,0.29236346]
[1747990973775,1.621,684.66,684.08,0.29236346]
[1747990974375,0.98953373,684.65,684.08,0.29236346]
[1747990974879,1.693,684.64,684.08,0.29236346]
[1747990975783,0.98953373,684.63,684.08,0.29236346]
[1747990976678,0.98953373,684.62,684.08,0.29236346]
[1747990978579,0.98953373,684.61,684.08,0.29236346]
[1747990979873,0.98953373,684.6,684.08,0.29236346]
[1747990981175,0.98953373,684.59,684.08,0.29236346]
[1747990982377,0.98953373,684.58,684.08,0.29236346]
[1747990984083,1.67,684.57,684.08,0.29236346]
[1747990984285,2.65953373,684.57,684.08,0.29236346]
[1747990985585,0.98953373,684.56,684.08,0.29236346]
[1747990996090,1.227,684.55,684.08,0.29236346]
[1747990997389,0.98953373,684.54,684.08,0.29236346]
[1747990999696,1.227,684.55,684.08,0.29236346]
[1747991000097,1.642,684.54,684.08,0.29236346]
[1747991000497,1.675,684.53,684.08,0.29236346]
[1747991003399,1.815,684.52,684.08,0.29236346]
[1747991022014,1.617,684.51,684.08,0.29236346]
[1747991026019,0.99318575,684.5,684.08,0.29236346]
[1747991027315,0.99318575,684.49,684.08,0.29236346]
[1747991028624,0.99318575,684.5,684.08,0.29236346]
[1747991030427,1.33,684.49,684.08,0.29236346]
[1747991030720,0.99318575,684.48,684.08,0.29236346]
[1747991034328,0.99318575,684.47,684.08,0.29236346]
[1747991035930,0.99318575,684.46,684.08,0.29236346]
[1747991037029,0.99318575,684.45,684.08,0.29236346]
[1747991038733,0.99318575,684.44,684.08,0.29236346]
[1747991039128,0.99318575,684.44,683.8,1.62859657]
[1747991040033,0.99318575,684.43,683.8,1.62859657]
[1747991041535,0.99318575,684.42,683.77,1.62859657]
[1747991043236,1.33,684.49,683.77,1.62859657]
[1747991043237,0.99318575,684.41,683.77,1.62859657]
[1747991043635,1.412,684.4,683.77,1.62859657]
[1747991045338,0.99318575,684.39,683.77,1.62859657]
[1747991046840,0.99318575,684.38,683.77,1.62859657]
[1747991048141,0.99318575,684.37,683.81,1.62859657]
[1747991048440,2.109,684.36,683.81,1.62859657]
[1747991048641,3.947,684.36,683.81,1.62859657]
[1747991049742,0.99318575,684.35,683.81,1.62859657]
[1747991051245,0.99318575,684.35,683.82,0.29247462]
[1747991051846,0.99318575,684.34,683.82,0.29247462]
[1747991053147,3.947,684.36,683.82,0.29247462]
[1747991056744,1.448,684.35,683.82,0.29247462]
[1747991060449,1.448,684.35,683.86,1.62859657]
[1747991063650,1.448,684.35,683.87,1.62859657]
[1747991066855,1.448,684.35,683.86,1.62859657]
[1747991075065,1.448,684.35,683.93,1.62859657]
[1747991077563,1.448,684.35,683.91,1.62859657]
[1747991080571,1.448,684.35,683.87,1.62859657]
[1747991082773,1.448,684.35,683.87,1.92104981]
[1747991082967,1.448,684.35,683.87,0.29245324]
[1747991083168,1.448,684.35,683.88,0.29244896]
[1747991089176,1.448,684.35,683.91,1.62859657]
[1747991089373,1.448,684.35,683.92,0.29243186]
[1747991091976,1.448,684.35,683.92,1.92102843]
[1747991095575,1.448,684.35,683.97,1.62859657]
[1747991095880,1.448,684.35,683.98,0.29240621]
[1747991098284,1.448,684.35,684.02,1.62859657]
[1747991098482,1.448,684.35,684.03,0.29238483]
[1747991099786,1.09496494,684.87,684.03,0.29238483]
[1747991099977,0.468401,684.86,684.03,0.29238483]
[1747991100181,0.468401,684.85,684.03,0.29238483]
[1747991100384,0.468401,684.84,684.03,0.29238483]
[1747991100679,0.468401,684.83,684.03,0.29238483]
[1747991100883,0.98795703,684.84,684.03,0.29238483]
[1747991101883,0.98795703,684.83,684.03,0.29238483]
[1747991102481,1.449,684.82,684.03,0.29238483]
[1747991104185,0.98795703,684.81,684.03,0.29238483]
[1747991105287,0.98795703,684.8,684.03,0.29238483]
[1747991106787,0.98795703,684.79,684.04,1.62859657]
[1747991106987,0.98795703,684.79,684.05,0.29237628]
[1747991108085,1.449,684.82,684.05,0.29237628]
[1747991110585,1.449,684.82,684.19,1.62637802]
[1747991110786,1.449,684.82,684.2,0.29231218]
[1747991121494,1.389,685.03,684.2,0.29231218]
[1747991124295,1.484,685.02,684.2,0.29231218]
[1747991125402,1.484,685.02,684.22,1.62637802]
[1747991125602,1.484,685.02,684.23,0.29229937]
[1747991128706,1.484,685.02,684.27,1.62637802]
[1747991128905,1.484,685.02,684.28,0.29227801]
[1747991139318,2.975,685.02,684.28,0.29227801]
[1747991142723,2.072,685.01,684.28,0.29227801]
[1747991151131,1.402,685.0,684.28,0.29227801]
[1747991155132,1.347,684.99,684.28,0.29227801]
[1747991156633,1.347,684.99,684.3,1.62637802]
[1747991157736,1.908,684.98,684.3,1.62637802]
[1747991159237,1.908,684.98,684.28,0.29227801]
[1747991162635,1.908,684.98,684.38,1.62637802]
[1747991162839,1.908,684.98,684.39,0.29223103]
[1747991165639,1.908,684.98,684.52,1.62637802]
[1747991168539,1.908,684.98,684.48,1.62637802]
[1747991170944,1.908,684.98,684.43,1.62637802]
[1747991171137,1.908,684.98,684.44,0.29220968]
[1747991178349,1.858,684.97,684.44,0.29220968]
[1747991179945,1.858,684.97,684.44,1.9185877]
[1747991182755,1.858,684.97,684.54,1.62637802]
[1747991185859,1.858,684.97,684.57,1.62637802]
[1747991186160,1.281,684.96,684.57,1.62637802]
[1747991188064,1.281,684.96,684.56,1.62637802]
[1747991190461,1.281,684.96,684.45,1.62637802]
[1747991190667,1.281,684.96,684.46,0.29220115]
[1747991195871,1.281,684.96,684.51,1.62637802]
[1747991196070,1.281,684.96,684.52,0.29217553]
[1747991198275,1.281,684.96,684.6,1.62637802]
[1747991198478,2.827,684.96,684.6,1.62637802]
[1747991198676,2.827,684.96,684.6,1.91851941]
[1747991200279,2.827,684.96,684.61,0.29213712]
[1747991213990,1.281,684.96,684.61,0.29213712]
[1747991216191,1.43,685.05,684.61,0.29213712]
[1747991224299,0.97498608,685.04,684.61,0.29213712]
[1747991225600,0.97498608,685.03,684.61,0.29213712]
[1747991227600,0.97498608,685.02,684.61,0.29213712]
[1747991229002,0.97498608,685.04,684.61,0.29213712]
[1747991230603,1.08945904,685.43,684.61,0.29213712]
[1747991230899,0.46644157,685.42,684.61,0.29213712]
[1747991231101,0.46644157,685.41,684.61,0.29213712]
[1747991231300,0.46644157,685.4,684.61,0.29213712]
[1747991231501,0.46644157,685.39,684.61,0.29213712]
[1747991231703,0.46644157,685.38,684.61,0.29213712]
[1747991231902,0.46644157,685.37,684.61,0.29213712]